lending/lending_fUSD_20260310
["ID","MTS","AMOUNT","RATE_DAILY","PERIOD"]
[408088133,1773131442265,-151.0,0.0001963,2]
[408088134,1773131442275,-151.0,0.0001963,2]
[408088135,1773131442284,-3229.5306877,0.00019649,2]
[408088136,1773131442293,-1000.0,0.00019656,2]
[408088137,1773131442302,-234.83493375,0.00019656,2]
[408088138,1773131442311,-2308.04093608,0.00019659,2]
[408088139,1773131442321,-174.99011452,0.00019661,2]
[408088140,1773131442330,-150.0,0.00019669,2]
[408088141,1773131442340,-1081.0,0.00019669,5]
[408088142,1773131442349,-14042.1524703,0.00019671,2]
[408088143,1773131442358,-4060.7009452,0.00019671,2]
[408088144,1773131442368,-1397.38602853,0.00019671,2]
[408088152,1773131443140,-3325.69041156,0.00019671,2]
[408088153,1773131443152,-7093.25126285,0.00019671,2]
[408088154,1773131443191,-204.89317,0.00019571,2]
[408088155,1773131443200,-4692.59834961,0.00019671,2]
[408088156,1773131443313,-37506.39625866,0.00019671,2]
[408088157,1773131443325,-912.98328293,0.00019671,2]
[408088158,1773131443336,-4728.65385423,0.00019671,2]
[408088159,1773131443355,-151.0,0.00019571,2]
[408088160,1773131443365,-920.557,0.00019589,2]
[408088161,1773131443375,-1134.15795633,0.00019671,2]
[408088162,1773131443402,-503.144843,0.00019571,2]
[408088163,1773131443412,-151.0,0.00019589,2]
[408088164,1773131443421,-102852.6550247,0.00019671,2]
[408088165,1773131443519,-151.0,0.00019671,2]
[408088166,1773131443531,-199.207104,0.00019671,2]
[408088167,1773131443540,-151.0,0.00019671,2]
[408088168,1773131443550,-151.0,0.00019671,2]
[408088170,1773131443559,-151.0,0.00019671,2]
[408088172,1773131443568,-151.0,0.00019671,2]
[408088173,1773131443578,-151.0,0.00019671,2]
[408088174,1773131443587,-151.0,0.00019671,2]
[408088175,1773131443601,-151.0,0.00019671,2]
[408088176,1773131443611,-151.0,0.00019671,2]
[408088177,1773131443620,-151.0,0.00019671,2]
[408088178,1773131443629,-151.0,0.00019671,2]
[408088179,1773131443638,-151.0,0.00019671,2]
[408088180,1773131443647,-151.0,0.00019671,2]
[408088181,1773131443656,-152.491587,0.00019671,2]
[408088182,1773131443665,-151.0,0.00019671,2]
[408088183,1773131443675,-159.114405,0.00019671,2]
[408088184,1773131443684,-151.0,0.00019671,2]
[408088185,1773131443693,-902.233298,0.00019671,2]
[408088186,1773131443702,-902.233298,0.00019671,2]
[408088187,1773131443711,-902.233298,0.00019671,2]
[408088188,1773131443720,-902.233298,0.00019671,2]
[408088189,1773131443729,-184.906114,0.00019671,2]
[408088190,1773131443739,-184.906114,0.00019671,2]
[408088191,1773131443748,-184.906114,0.00019671,2]
[408088192,1773131443758,-184.906114,0.00019671,2]
[408088193,1773131443768,-151.0,0.00019671,2]
[408088194,1773131443781,-245.921461,0.00019671,2]
[408088195,1773131443790,-186.493858,0.00019671,2]
[408088196,1773131443800,-186.493858,0.00019671,2]
[408088197,1773131443809,-186.493858,0.00019671,2]
[408088198,1773131443819,-186.493858,0.00019671,2]
[408088199,1773131443829,-232.255449,0.00019671,2]
[408088200,1773131443839,-163.717381,0.00019671,2]
[408088201,1773131443848,-232.255449,0.00019671,2]
[408088202,1773131443857,-232.255449,0.00019671,2]
[408088203,1773131443866,-232.255449,0.00019671,2]
[408088204,1773131443875,-151.0,0.00019671,2]
[408088205,1773131443885,-151.0,0.00019671,2]
[408088206,1773131443894,-153.534323,0.00019671,2]
[408088207,1773131443903,-236.91424,0.00019671,2]
[408088208,1773131443912,-253.548355,0.00019671,2]
[408088209,1773131443922,-253.548355,0.00019671,2]
[408088210,1773131443932,-718.616818,0.00019671,2]
[408088211,1773131443943,-253.548355,0.00019671,2]
[408088212,1773131443952,-151.0,0.00019671,2]
[408088213,1773131443962,-718.616818,0.00019671,2]
[408088214,1773131443972,-253.548355,0.00019671,2]
[408088215,1773131443982,-718.616818,0.00019671,2]
[408088216,1773131443993,-718.616818,0.00019671,2]
[408088217,1773131444003,-189.498979,0.00019671,2]
[408088218,1773131444013,-151.0,0.00019671,2]
[408088219,1773131444023,-151.0,0.00019671,2]
[408088220,1773131444033,-151.0,0.00019671,2]
[408088221,1773131444044,-164.746908,0.00019671,2]
[408088222,1773131444054,-151.0,0.00019671,2]
[408088223,1773131444063,-151.0,0.00019671,2]
[408088224,1773131444073,-151.0,0.00019671,2]
[408088225,1773131444083,-151.0,0.00019671,2]
[408088226,1773131444093,-151.0,0.00019671,2]
[408088227,1773131444103,-151.0,0.00019671,2]
[408088228,1773131444113,-151.0,0.00019671,2]
[408088229,1773131444123,-221.239915,0.00019671,2]
[408088230,1773131444132,-151.0,0.00019671,2]
[408088231,1773131444142,-151.0,0.00019671,2]
[408088232,1773131444151,-612.557542,0.00019671,2]
[408088233,1773131444161,-612.557542,0.00019671,2]
[408088234,1773131444170,-151.0,0.00019671,2]
[408088235,1773131444180,-612.557542,0.00019671,2]
[408088236,1773131444189,-612.557542,0.00019671,2]
[408088237,1773131444198,-180.239223,0.00019671,2]
[408088238,1773131444208,-177.350682,0.00019671,2]
[408088239,1773131444217,-180.239223,0.00019671,2]
[408088240,1773131444227,-177.350682,0.00019671,2]
[408088241,1773131444237,-180.239223,0.00019671,2]
[408088242,1773131444246,-177.350682,0.00019671,2]
[408088243,1773131444256,-180.239223,0.00019671,2]
[408088244,1773131444266,-177.350682,0.00019671,2]
[408088245,1773131444276,-1064.612981,0.00019671,2]
[408088246,1773131444286,-151.0,0.00019671,2]
[408088247,1773131444296,-1064.612981,0.00019671,2]
[408088248,1773131444305,-278.687678,0.00019671,2]
[408088249,1773131444315,-1064.612981,0.00019671,2]
[408088250,1773131444325,-151.0,0.00019671,2]
[408088251,1773131444335,-1861.547374,0.00019671,2]
[408088252,1773131444344,-278.687678,0.00019671,2]
[408088253,1773131444354,-1064.612981,0.00019671,2]
[408088254,1773131444364,-1861.547374,0.00019671,2]
[408088255,1773131444374,-421.763913,0.00019671,2]
[408088256,1773131444384,-278.687678,0.00019671,2]
[408088257,1773131444394,-1861.547374,0.00019671,2]
[408088258,1773131444403,-278.687678,0.00019671,2]
[408088259,1773131444413,-421.763913,0.00019671,2]
[408088260,1773131444423,-1861.547374,0.00019671,2]
[408088261,1773131444434,-421.763913,0.00019671,2]
[408088262,1773131444444,-421.763913,0.00019671,2]
[408088263,1773131444454,-151.0,0.00019671,2]
[408088264,1773131444464,-843.296776,0.00019671,2]
[408088265,1773131444473,-843.296776,0.00019671,2]
[408088266,1773131444483,-843.296776,0.00019671,2]
[408088267,1773131444493,-843.296776,0.00019671,2]
[408088268,1773131444502,-154.839094,0.00019671,2]
[408088269,1773131444514,-151.0,0.00019671,2]
[408088270,1773131444528,-151.0,0.00019671,2]
[408088271,1773131444538,-151.0,0.00019671,2]
[408088272,1773131444549,-151.0,0.00019671,2]
[408088273,1773131444560,-228.371361,0.00019671,2]
[408088274,1773131444571,-913.201404,0.00019671,2]
[408088275,1773131444581,-228.371361,0.00019671,2]
[408088276,1773131444592,-913.201404,0.00019671,2]
[408088277,1773131444603,-228.371361,0.00019671,2]
[408088278,1773131444613,-913.201404,0.00019671,2]
[408088279,1773131444624,-228.371361,0.00019671,2]
[408088280,1773131444634,-913.201404,0.00019671,2]
[408088281,1773131444644,-228.371361,0.00019671,2]
[408088282,1773131444653,-913.201404,0.00019671,2]
[408088283,1773131444662,-228.371361,0.00019671,2]
[408088284,1773131444672,-913.201404,0.00019671,2]
[408088285,1773131444681,-228.371361,0.00019671,2]
[408088286,1773131444691,-228.371361,0.00019671,2]
[408088287,1773131444700,-913.201404,0.00019671,2]
[408088288,1773131444709,-913.201404,0.00019671,2]
[408088289,1773131444719,-151.0,0.00019671,2]
[408088290,1773131444728,-151.0,0.00019671,2]
[408088291,1773131444737,-151.0,0.00019671,2]
[408088292,1773131444747,-276.247816,0.00019671,2]
[408088293,1773131444757,-995.518115,0.00019671,2]
[408088294,1773131444767,-995.518115,0.00019671,2]
[408088295,1773131444776,-995.518115,0.00019671,2]
[408088296,1773131444785,-995.518115,0.00019671,2]
[408088297,1773131444795,-995.518115,0.00019671,2]
[408088298,1773131444804,-995.518115,0.00019671,2]
[408088299,1773131444814,-995.518115,0.00019671,2]
[408088300,1773131444823,-995.518115,0.00019671,2]
[408088301,1773131444832,-155.42895,0.00019671,2]
[408088302,1773131444841,-5159.15632,0.00019671,2]
[408088303,1773131444851,-5159.15632,0.00019671,2]
[408088304,1773131444861,-5159.15632,0.00019671,2]
[408088305,1773131444870,-5159.15632,0.00019671,2]
[408088306,1773131444880,-5159.15632,0.00019671,2]
[408088307,1773131444889,-5159.15632,0.00019671,2]
[408088308,1773131444898,-5159.15632,0.00019671,2]
[408088309,1773131444908,-5159.15632,0.00019671,2]
[408088310,1773131444917,-151.0,0.00019671,2]
[408088311,1773131444926,-187.739181,0.00019671,2]
[408088312,1773131444936,-296.502501,0.00019671,2]
[408088313,1773131444945,-296.502501,0.00019671,2]
[408088314,1773131444955,-296.502501,0.00019671,2]
[408088315,1773131444964,-296.502501,0.00019671,2]
[408088316,1773131444973,-296.502501,0.00019671,2]
[408088317,1773131444983,-296.502501,0.00019671,2]
[408088318,1773131444992,-296.502501,0.00019671,2]
[408088319,1773131445001,-296.502501,0.00019671,2]
[408088320,1773131445011,-151.0,0.00019671,2]
[408088321,1773131445020,-199.540689,0.00019671,2]
[408088322,1773131445030,-730.476026,0.00019671,2]
[408088323,1773131445039,-730.476026,0.00019671,2]
[408088324,1773131445049,-730.476026,0.00019671,2]
[408088325,1773131445058,-730.476026,0.00019671,2]
[408088326,1773131445067,-511.427712,0.00019671,2]
[408088327,1773131445077,-730.476026,0.00019671,2]
[408088328,1773131445086,-511.427712,0.00019671,2]
[408088329,1773131445096,-730.476026,0.00019671,2]
[408088330,1773131445107,-511.427712,0.00019671,2]
[408088331,1773131445116,-730.476026,0.00019671,2]
[408088332,1773131445126,-511.427712,0.00019671,2]
[408088333,1773131445136,-374.525594,0.00019671,2]
[408088334,1773131445146,-730.476026,0.00019671,2]
[408088335,1773131445155,-374.525594,0.00019671,2]
[408088336,1773131445165,-511.427712,0.00019671,2]
[408088337,1773131445175,-511.427712,0.00019671,2]
[408088338,1773131445185,-374.525594,0.00019671,2]
[408088339,1773131445195,-374.525594,0.00019671,2]
[408088340,1773131445205,-511.427712,0.00019671,2]
[408088341,1773131445215,-374.525594,0.00019671,2]
[408088342,1773131445225,-511.427712,0.00019671,2]
[408088343,1773131445235,-374.525594,0.00019671,2]
[408088344,1773131445245,-840.757469,0.00019671,2]
[408088345,1773131445255,-840.757469,0.00019671,2]
[408088346,1773131445265,-374.525594,0.00019671,2]
[408088347,1773131445275,-374.525594,0.00019671,2]
[408088348,1773131445284,-840.757469,0.00019671,2]
[408088349,1773131445294,-840.757469,0.00019671,2]
[408088350,1773131445304,-3694.167787,0.00019671,2]
[408088351,1773131445314,-3694.167787,0.00019671,2]
[408088352,1773131445324,-840.757469,0.00019671,2]
[408088353,1773131445334,-3694.167787,0.00019671,2]
[408088354,1773131445343,-3694.167787,0.00019671,2]
[408088355,1773131445353,-3694.167787,0.00019671,2]
[408088356,1773131445363,-3694.167787,0.00019671,2]
[408088357,1773131445373,-3694.167787,0.00019671,2]
[408088358,1773131445383,-3694.167787,0.00019671,2]
[408088359,1773131445393,-840.757469,0.00019671,2]
[408088360,1773131445403,-840.757469,0.00019671,2]
[408088361,1773131445412,-840.757469,0.00019671,2]
[408088362,1773131445422,-597.550008,0.00019671,2]
[408088363,1773131445432,-597.550008,0.00019671,2]
[408088364,1773131445442,-597.550008,0.00019671,2]
[408088365,1773131445451,-597.550008,0.00019671,2]
[408088366,1773131445461,-597.550008,0.00019671,2]
[408088367,1773131445471,-597.550008,0.00019671,2]
[408088368,1773131445481,-597.550008,0.00019671,2]
[408088369,1773131445491,-597.550008,0.00019671,2]
[408088370,1773131445501,-954.244289,0.00019671,2]
[408088371,1773131445511,-954.244289,0.00019671,2]
[408088372,1773131445526,-954.244289,0.00019671,2]
[408088373,1773131445542,-954.244289,0.00019671,2]
[408088374,1773131445551,-954.244289,0.00019671,2]
[408088375,1773131445561,-954.244289,0.00019671,2]
[408088376,1773131445571,-954.244289,0.00019671,2]
[408088377,1773131445580,-954.244289,0.00019671,2]
[408088378,1773131445590,-151.0,0.00019671,2]
[408088379,1773131445599,-151.0,0.00019671,2]
[408088380,1773131445609,-151.0,0.00019671,2]
[408088381,1773131445618,-151.0,0.00019671,2]
[408088382,1773131445627,-151.0,0.00019671,2]
[408088383,1773131445637,-2730.13669,0.00019671,2]
[408088384,1773131445646,-2730.13669,0.00019671,2]
[408088385,1773131445656,-2730.13669,0.00019671,2]
[408088386,1773131445665,-2730.13669,0.00019671,2]
[408088387,1773131445675,-151.0,0.00019671,2]
[408088388,1773131445685,-151.0,0.00019671,2]
[408088389,1773131445695,-2730.13669,0.00019671,2]
[408088390,1773131445704,-2730.13669,0.00019671,2]
[408088391,1773131445714,-2730.13669,0.00019671,2]
[408088392,1773131445724,-2730.13669,0.00019671,2]
[408088393,1773131445735,-151.0,0.00019671,2]
[408088394,1773131445744,-151.0,0.00019671,2]
[408088395,1773131445755,-648.908861,0.00019671,2]
[408088396,1773131445766,-648.908861,0.00019671,2]
[408088397,1773131445778,-648.908861,0.00019671,2]
[408088399,1773131445788,-151.0,0.00019671,2]
[408088401,1773131445799,-648.908861,0.00019671,2]
[408088403,1773131445810,-151.0,0.00019671,2]
[408088405,1773131445819,-648.908861,0.00019671,2]
[408088407,1773131445829,-648.908861,0.00019671,2]
[408088409,1773131445838,-648.908861,0.00019671,2]
[408088410,1773131445847,-648.908861,0.00019671,2]
[408088411,1773131445857,-172.263771,0.00019671,2]
[408088412,1773131445866,-151.0,0.00019671,2]
[408088413,1773131445876,-151.0,0.00019671,2]
[408088414,1773131445886,-151.0,0.00019671,2]
[408088415,1773131445896,-151.0,0.00019671,2]
[408088416,1773131445905,-500.0,0.00019673,2]
[408088417,1773131445915,-581.99073604,0.00019673,2]
[408088418,1773131445924,-500.0,0.00019673,2]
[408088419,1773131445933,-500.0,0.00019673,2]
[408088420,1773131445943,-500.0,0.00019673,2]
[408088421,1773131445952,-500.0,0.00019673,2]
[408088422,1773131445962,-500.0,0.00019673,2]
[408088423,1773131445972,-289.99069694,0.00019673,2]
[408088424,1773131445981,-500.0,0.00019673,2]
[408088425,1773131445991,-500.0,0.00019673,2]
[408088426,1773131446001,-500.0,0.00019673,2]
[408088427,1773131446010,-500.0,0.00019673,2]
[408088428,1773131446019,-500.0,0.00019673,2]
[408088429,1773131446029,-500.0,0.00019673,2]
[408088430,1773131446039,-500.0,0.00019673,2]
[408088431,1773131446048,-500.0,0.00019673,2]
[408088432,1773131446058,-500.0,0.00019673,2]
[408088433,1773131446067,-500.0,0.00019673,2]
[408088434,1773131446077,-500.0,0.00019673,2]
[408088435,1773131446087,-228.371361,0.00019673,2]
[408088436,1773131446098,-913.201404,0.00019673,2]
[408088437,1773131446109,-228.371361,0.00019673,2]
[408088438,1773131446119,-913.201404,0.00019673,2]
[408088439,1773131446129,-228.371361,0.00019673,2]
[408088440,1773131446138,-913.201404,0.00019673,2]
[408088441,1773131446148,-228.371361,0.00019673,2]
[408088442,1773131446157,-913.201404,0.00019673,2]
[408088443,1773131446167,-151.0,0.00019673,2]
[408088444,1773131446176,-995.518115,0.00019673,2]
[408088445,1773131446186,-995.518115,0.00019673,2]
[408088446,1773131446198,-995.518115,0.00019673,2]
[408088447,1773131446207,-995.518115,0.00019673,2]
[408088448,1773131446217,-5159.15632,0.00019673,2]
[408088449,1773131446227,-5159.15632,0.00019673,2]
[408088450,1773131446238,-5159.15632,0.00019673,2]
[408088451,1773131446249,-5159.15632,0.00019673,2]
[408088452,1773131446258,-151.0,0.00019673,2]
[408088453,1773131446268,-151.0,0.00019673,2]
[408088454,1773131446278,-2802.0,0.0001968,2]
[408088455,1773131446288,-151.0,0.0001968,2]
[408088456,1773131446298,-195.290384,0.0001968,2]
[408088458,1773131446307,-192.555187,0.0001968,2]
[408088459,1773131446317,-180.239223,0.0001968,2]
[408088460,1773131446327,-177.350682,0.0001968,2]
[408088461,1773131446336,-180.239223,0.0001968,2]
[408088462,1773131446345,-177.350682,0.0001968,2]
[408088463,1773131446354,-180.239223,0.0001968,2]
[408088464,1773131446363,-177.350682,0.0001968,2]
[408088465,1773131446373,-180.239223,0.0001968,2]
[408088466,1773131446383,-177.350682,0.0001968,2]
[408088467,1773131446392,-1064.612981,0.0001968,2]
[408088468,1773131446402,-151.0,0.0001968,2]
[408088469,1773131446411,-1064.612981,0.0001968,2]
[408088470,1773131446422,-278.687678,0.0001968,2]
[408088471,1773131446434,-1064.612981,0.0001968,2]
[408088472,1773131446444,-284.144415,0.0001968,2]
[408088473,1773131446456,-1861.547374,0.0001968,2]
[408088474,1773131446466,-278.687678,0.0001968,2]
[408088475,1773131446477,-1064.612981,0.0001968,2]
[408088476,1773131446488,-1861.547374,0.0001968,2]
[408088477,1773131446498,-421.763913,0.0001968,2]
[408088478,1773131446509,-278.687678,0.0001968,2]
[408088479,1773131446519,-1861.547374,0.0001968,2]
[408088480,1773131446531,-278.687678,0.0001968,2]
[408088481,1773131446542,-421.763913,0.0001968,2]
[408088482,1773131446553,-1861.547374,0.0001968,2]
[408088483,1773131446565,-421.763913,0.0001968,2]
[408088484,1773131446575,-421.763913,0.0001968,2]
[408088485,1773131446585,-151.0,0.0001968,2]
[408088486,1773131446597,-843.296776,0.0001968,2]
[408088487,1773131446607,-843.296776,0.0001968,2]
[408088488,1773131446617,-843.296776,0.0001968,2]
[408088489,1773131446626,-843.296776,0.0001968,2]
[408088490,1773131446636,-151.0,0.0001968,2]
[408088491,1773131446647,-151.0,0.0001968,2]
[408088492,1773131446658,-279.01536,0.0001968,2]
[408088493,1773131446668,-2730.13669,0.0001968,2]
[408088494,1773131446678,-2730.13669,0.0001968,2]
[408088495,1773131446687,-151.0,0.0001968,2]
[408088496,1773131446698,-2730.13669,0.0001968,2]
[408088497,1773131446709,-2730.136689,0.0001968,2]
[408088498,1773131446719,-151.0,0.0001968,2]
[408088499,1773131446728,-648.908861,0.0001968,2]
[408088500,1773131446738,-648.908861,0.0001968,2]
[408088501,1773131446748,-151.0,0.0001968,2]
[408088502,1773131446758,-648.908861,0.0001968,2]
[408088503,1773131446768,-648.908863,0.0001968,2]
[408088504,1773131446779,-309.17,0.00019689,2]
[408088505,1773131446789,-3229.5306877,0.00019694,2]
[408088506,1773131446801,-1100.0,0.000197,7]
[408088507,1773131446811,-1058.55,0.00019711,2]
[408088508,1773131446821,-151.0,0.00019711,2]
[408088509,1773131446831,-151.0,0.00019711,2]
[408088510,1773131446841,-151.0,0.00019711,2]
[408088511,1773131447052,-151.0,0.00019711,2]
[408088512,1773131447062,-151.0,0.00019711,2]
[408088513,1773131447071,-151.0,0.00019711,2]
[408088514,1773131447080,-612.557542,0.00019711,2]
[408088515,1773131447089,-612.557542,0.00019711,2]
[408088516,1773131447098,-612.557542,0.00019711,2]
[408088517,1773131447107,-612.557542,0.00019711,2]
[408088518,1773131447118,-151.0,0.00019726,2]
[408088519,1773131447127,-151.0,0.00019726,2]
[408088520,1773131447137,-160.643219,0.00019726,2]
[408088521,1773131447146,-787.0,0.00019726,2]
[408088522,1773131447155,-203.26,0.00019734,2]
[408088523,1773131447164,-3229.5306877,0.00019738,2]
[408088524,1773131447174,-253.548355,0.00019739,2]
[408088525,1773131447183,-253.548355,0.00019739,2]
[408088526,1773131447192,-718.616818,0.00019739,2]
[408088527,1773131447201,-253.548355,0.00019739,2]
[408088528,1773131447210,-151.0,0.00019739,2]
[408088529,1773131447219,-718.616818,0.00019739,2]
[408088530,1773131447230,-253.548355,0.00019739,2]
[408088531,1773131447239,-718.616818,0.00019739,2]
[408088532,1773131447248,-718.616818,0.00019739,2]
[408088533,1773131447257,-151.0,0.00019739,2]
[408088534,1773131447266,-151.0,0.00019739,2]
[408088535,1773131447275,-200.775125,0.00019739,2]
[408088536,1773131447284,-153.59002681,0.00019771,2]
[408088537,1773131447293,-168.0,0.00019777,2]
[408088538,1773131447302,-200.0,0.00019778,2]
[408088539,1773131447312,-761.0,0.00019781,7]
[408088540,1773131447321,-761.0,0.00019781,7]
[408088541,1773131447332,-228.371361,0.00019781,2]
[408088542,1773131447342,-913.201404,0.00019781,2]
[408088543,1773131447352,-228.371361,0.00019781,2]
[408088544,1773131447364,-913.201404,0.00019781,2]
[408088545,1773131447374,-228.371361,0.00019781,2]
[408088546,1773131447384,-913.201404,0.00019781,2]
[408088547,1773131447395,-228.371365,0.00019781,2]
[408088548,1773131447404,-913.201396,0.00019781,2]
[408088549,1773131447414,-151.0,0.00019781,2]
[408088550,1773131447424,-995.518115,0.00019781,2]
[408088551,1773131447434,-995.518115,0.00019781,2]
[408088552,1773131447443,-995.518115,0.00019781,2]
[408088553,1773131447453,-995.518111,0.00019781,2]
[408088554,1773131447462,-5159.15632,0.00019781,2]
[408088555,1773131447471,-5159.15632,0.00019781,2]
[408088556,1773131447480,-5159.15632,0.00019781,2]
[408088557,1773131447490,-5159.15631,0.00019781,2]
[408088558,1773131447499,-296.502501,0.00019781,2]
[408088559,1773131447508,-296.502501,0.00019781,2]
[408088560,1773131447518,-296.502501,0.00019781,2]
[408088561,1773131447532,-296.50249549,0.00019781,2]
[408088562,1773131447542,-730.476026,0.00019781,2]
[408088563,1773131447551,-730.476026,0.00019781,2]
[408088564,1773131447560,-511.427712,0.00019781,2]
[408088565,1773131447570,-730.476026,0.00019781,2]
[408088566,1773131447579,-364.46309321,0.00019781,2]
[408088567,1773131447598,-146.96461879,0.00019781,2]
[408088568,1773131447607,-730.476019,0.00019781,2]
[408088569,1773131447615,-374.525594,0.00019781,2]
[408088570,1773131447624,-511.427712,0.00019781,2]
[408088571,1773131447634,-374.525594,0.00019781,2]
[408088572,1773131447643,-511.427713,0.00019781,2]
[408088573,1773131447652,-374.525594,0.00019781,2]
[408088574,1773131447661,-737.8416464,0.00019781,2]
[408088575,1773131447870,-102.9158226,0.00019781,2]
[408088576,1773131447882,-374.525594,0.00019781,2]
[408088577,1773131447892,-840.757469,0.00019781,2]
[408088578,1773131447903,-3694.167787,0.00019781,2]
[408088579,1773131447912,-1968.16169526,0.00019781,2]
[408088580,1773131447949,-503.144843,0.00019589,2]
[408088581,1773131447958,-151.0,0.00019671,2]
[408088582,1773131447967,-153.293619,0.00019781,2]
[408088583,1773131448247,-151.0,0.00019571,2]
[408088584,1773131448256,-503.144843,0.00019571,2]
[408088585,1773131448265,-151.0,0.00019571,2]
[408088586,1773131448275,-503.144843,0.00019571,2]
[408088587,1773131448285,-503.144843,0.00019571,2]
[408088588,1773131448294,-151.0,0.00019589,2]
[408088589,1773131448304,-503.144843,0.00019589,2]
[408088590,1773131448313,-151.0,0.00019589,2]
[408088591,1773131448322,-503.144843,0.00019589,2]
[408088592,1773131448332,-151.0,0.00019671,2]
[408088593,1773131448342,-503.144843,0.00019671,2]
[408088594,1773131448351,-503.144843,0.00019671,2]
[408088595,1773131448361,-151.0,0.00019671,2]
[408088596,1773131448371,-151.0,0.00019671,2]
[408088597,1773131448380,-503.144843,0.00019671,2]
[408088598,1773131448389,-503.144843,0.00019671,2]
[408088599,1773131448398,-265.29247334,0.00019671,2]
[408088600,1773131448408,-503.144843,0.00019671,2]
[408088601,1773131448417,-503.144843,0.00019671,2]
[408088602,1773131448427,-151.0,0.00019673,2]
[408088603,1773131448437,-503.144843,0.00019673,2]
[408088604,1773131448447,-151.0,0.00019673,2]
[408088605,1773131448456,-503.144843,0.00019673,2]
[408088606,1773131448466,-503.144843,0.00019673,2]
[408088607,1773131448475,-1572.71247274,0.00019781,2]
[408088608,1773131448485,-3694.167787,0.00019781,2]
[408088609,1773131448494,-3694.16778285,0.00019781,2]
[408088610,1773131448503,-840.757469,0.00019781,2]
[408088611,1773131448513,-840.757472,0.00019781,2]
[408088612,1773131448526,-597.550008,0.00019781,2]
[408088613,1773131448537,-597.550008,0.00019781,2]
[408088614,1773131448546,-597.550008,0.00019781,2]
[408088615,1773131448555,-597.55,0.00019781,2]
[408088616,1773131448565,-154.00555412,0.00019781,2]
[408088617,1773131448587,-503.144843,0.00019589,2]
[408088618,1773131448598,-800.23873488,0.00019781,2]
[408088619,1773131448607,-954.244289,0.00019781,2]
[408088620,1773131448616,-954.244289,0.00019781,2]
[408088621,1773131448626,-954.244289,0.00019781,2]
[408088622,1773131448636,-151.0,0.00019781,2]
[408088623,1773131448645,-151.0,0.00019781,2]
[408088624,1773131448655,-1044.98775578,0.00019783,2]
[408088625,1773131448667,-2184.54293192,0.00019783,2]
[408088626,1773131448677,-152.0,0.00019786,7]
[408088627,1773131448687,-223.32,0.00019791,2]
[408088628,1773131448698,-831.79400579,0.00019791,2]
[408088629,1773131448710,-168.20599421,0.00019791,2]
[408088630,1773131448721,-251.9397,0.00019798,2]
[408088631,1773131448730,-611.0,0.000198,2]
[408088632,1773131448743,-1498.91767909,0.000198,2]
[408088633,1773131448754,-200.0,0.000198,7]
[408088634,1773131448763,-1900.91110649,0.000198,2]
[408088635,1773131448773,-150.0,0.000198,30]
[408088636,1773131448785,-138.82902021,0.00019807,2]
[408088637,1773131448798,-12.17097979,0.00019807,2]
[408088638,1773131448808,-162.14799,0.00019807,2]
[408088639,1773131448818,-122.06642302,0.0001982,2]
[408088640,1773131616603,-1000.0,0.00017944,2]
[408088641,1773131616633,-500.01,0.00018218,2]
[408088642,1773131619438,-1999.99,0.00018218,2]
[408088643,1773131619466,-500.0,0.00018325,7]
[408088644,1773131622520,-500.0,0.00018325,7]
[408088645,1773131622547,-600.0,0.00018325,7]
[408088646,1773131622577,-500.0,0.00018345,2]
[408088647,1773131622607,-500.0,0.000184,2]
[408088648,1773131622634,-300.01,0.00018455,2]